Cogmind - Beta 10 X2 --- EXPLORER MODE // 2020.07.18 @ 21:32:40 // Experiment/BattleRoyale Player: Minty Result: Escaped! Performance ------------- Evolutions (0) 0 Regions Visited (0) 0 Robots Destroyed (5) 25 Value Destroyed (2500) 2500 Prototype IDs (2) 40 Alien Tech Used (0) 0 Bonus (28991) 28991 TOTAL SCORE: 31556 Bonus ------- Win 3000 Win Speed 25991 Cogmind --------- Core Integrity 37/250 Matter 274/300 Energy 232/240 System Corruption 2% Temperature Cool (-95) Movement Walking (120) Location To Epsilon Eridani Parts ------- > --- POWER (3) -------- Micro Nuclear Core Light Quantum Reactor > --- PROPULSION (5) --- Carbon-fiber Leg Enhanced Armored Leg Centrium Leg > --- UTILITY (9) ------ Cryofiber Web Improved Cooling System Advanced Coolant Injector Improved Melee Analysis Suite Maneuvering Thrusters Improved Focal Shield > --- WEAPON (3) ------- Force Rifle > --- INVENTORY (4) ---- (None) Peak State ------------ > --- POWER ------------ Micro Nuclear Core Light Quantum Reactor > --- PROPULSION ------- Carbon-fiber Leg Enhanced Armored Leg Centrium Leg > --- UTILITY ---------- Cryofiber Web Improved Cooling System Advanced Cooling System Advanced Coolant Injector Compact Battery Improved Melee Analysis Suite Improved Kinecellerator Maneuvering Thrusters > --- WEAPON ----------- Force Rifle Smartbomb Launcher > --- INVENTORY -------- (None) [Rating: 85] Favorites ----------- Power Micro Nuclear Core Power Core Micro Nuclear Core Reactor Light Quantum Reactor Propulsion Centrium Leg Leg Centrium Leg Flight Unit Experimental Q-thruster Utility Cryofiber Web Device Cryofiber Web Storage Compact Battery Processor Improved Melee Analysis Suite Weapon Force Rifle Energy Gun Force Rifle Ballistic Gun Railgun Launcher Smartbomb Launcher Build | -5 ------- Run | Tow Slots Evolved . | . Power . | . Propulsion . | . Utility . | . Weapon . | . Parts Attached 9 | 9 Power . | . Engine . | . Core . | . Reactor . | . Propulsion 3 | 3 Treads . | . Leg 3 | 3 Wheel . | . Hover . | . Flight . | . Utility 3 | 3 Device 3 | 3 Storage . | . Processor . | . Hackware . | . Protection . | . Artifact . | . Weapon 3 | 3 Energy Gun 2 | 2 Energy Cannon . | . Ballistic Gun 1 | 1 Ballistic Cannon . | . Launcher . | . Special Weapon . | . Impact Weapon . | . Slashing Weapon . | . Piercing Weapon . | . Special Melee Weapon . | . Unidentified Prototypes 1 | 1 Parts Lost 7 | 7 Power . | . Propulsion 1 | 1 Utility 3 | 3 Weapon 3 | 3 Highest Loss Streak 4 | 4 Average Slot Usage (%) 83 | 83 Core 5 | 5 Reactor 5 | 5 Leg 17 | 17 Device 28 | 28 Storage 5 | 5 Processor 5 | 5 Energy Gun 9 | 9 Launcher 2 | 2 Naked Turns . | . Heaviest Build 48 | 48 Greatest Support 95 | 95 Greatest Overweight (x) 1 | 1 Average Overweight (x) . | . Largest Inventory Capacity 4 | 4 Average Capacity 4 | 4 Most Carried . | . Average Carried . | . Final Capacity 4 | 4 Final Carried . | . Class Distribution -------------------- 64% | Hacker-Mutant 30% | Hacker-Tank 4% | Hacker-Gunner Dominant Class ---------------- Hacker-Mutant | -5/Wartown Resources | -5 ----------- Run | Tow Matter Collected 80 | 80 Remotely . | . Salvage Created 428 | 428 Parts 20 | 20 Haulers Intercepted . | . Recyclers Shooed . | . Parts Field Recycled . | . Retrieved Matter . | . Parts Self-Destructed . | . Prevented . | . Kills | -5 ------- Run | Tow Combat Hostiles Destroyed 5 | 5 Guns 5 | 5 Classes Destroyed 1 | 1 Player 5 | 5 Best Kill Streak 1 | 1 Combat Bots Only 1 | 1 Max Kills in Single Turn 1 | 1 Gunslinging . | . Exploded . | . Melee . | . Uniques/NPCs Destroyed . | . Combat | -5 -------- Run | Tow Damage Taken 1029 | 1029 Core 542 | 542 Absorbed by Shields . | . Redirected to Core 6256 | 6256 Core Remaining (%) 14 | 14 Volleys Fired 76 | 76 Largest 3 | 3 Hottest 185 | 185 Shots Fired 111 | 111 Gun 105 | 105 Cannon . | . Launcher 6 | 6 Special . | . Kinetic 9 | 9 Thermal 70 | 70 Explosive 6 | 6 Electromagnetic 26 | 26 Robot Hit Streak 69 | 69 Robot Miss Streak 1 | 1 Penetration Max . | . Secondary Targets . | . Shots Hit Robots 84 | 84 Core Hits 12 | 12 Critical Hits 5 | 5 Critical Kills . | . Critical Parts Destroyed 3 | 3 Melee Attacks . | . Impact . | . Slashing . | . Piercing . | . Sneak Attacks . | . Combat Hostiles . | . Follow-up Attacks . | . Damage Inflicted 2187 | 2187 Guns 1842 | 1842 Cannons . | . Explosions 345 | 345 Melee . | . Ramming . | . Kinetic 207 | 207 Thermal 1305 | 1305 Explosive 345 | 345 Electromagnetic 330 | 330 Impact . | . Slashing . | . Piercing . | . Highest Corruption 2 | 2 Average Corruption 1 | 1 Corruption Purged . | . Effects 10 | 10 Message Errors 2 | 2 Heat Flow Errors 3 | 3 Data Loss (minor) 3 | 3 Targeting Errors 2 | 2 Overload Shots . | . Overflow Damage . | . Projectiles . | . Explosions . | . Melee . | . Knockbacks . | . Impact . | . Kinetic . | . Secondary . | . Self-Inflicted Damage . | . Shots . | . Rammed . | . Targets Rammed . | . Kicked . | . Crushed . | . Highest Temperature 221 | 221 Average Temperature 100 | 100 Received Heat Transfer 234 | 234 Siege Activations . | . Robots Corrupted . | . Combat Hostiles . | . Parts Fried . | . Impact Corruptions . | . Robots Melted . | . Combat Hostiles . | . Parts Melted 35 | 35 Heat Transferred 444 | 444 Parts Sabotaged . | . Parts Stolen . | . Parts Stripped . | . Power Chain Reactions . | . Missiles Intercepted . | . Alert | -5 ------- Run | Tow Peak Influence . | . Average Influence . | . Maximum Alert Level . | . Low Security (%) . | . Level 1 . | . Level 2 . | . Level 3 . | . Level 4 . | . Level 5 . | . High Security . | . Max Security . | . Squads Dispatched . | . Investigation . | . Extermination . | . Reinforcement . | . Assault . | . Garrison . | . Intercept . | . Construction Impeded . | . Haulers Reinforced . | . Stealth | -5 --------- Run | Tow Distress Signals . | . Communications Jammed . | . Distress Signals . | . Times Spotted 6 | 6 Peak Tracking Total 2 | 2 Tactical Retreats 1 | 1 Traps | -5 ------- Run | Tow Traps Triggered . | . Indirectly . | . Trap Hack Attempts . | . Triggered . | . Disarmed . | . Reprogrammed . | . Reused . | . Traps Extracted . | . Installed . | . Triggered . | . Machines | -5 ---------- Run | Tow Machines Disabled 6 | 6 Max in Single Turn 6 | 6 Machines Sabotaged . | . Garrisons Compromised . | . Overloaded Fab Kills . | . Fab Network Shutdowns . | . Hacking | -5 --------- Run | Tow Machines Accessed . | . Terminals . | . Fabricators . | . Repair Stations . | . Recycling Units . | . Scanalyzers . | . Garrison Access . | . Total Hacks . | . Successful . | . Failed . | . Catastrophic . | . Database Lockouts . | . Manual . | . Terminals . | . Fabricators . | . Repair Stations . | . Recycling Units . | . Scanalyzers . | . Garrison Access . | . Terminal Hacks . | . Fabricator Hacks . | . Repair Station Hacks . | . Recycling Unit Hacks . | . Scanalyzer . | . Garrison Access Hacks . | . Unauthorized Hacks . | . Terminals . | . Fabricators . | . Repair Stations . | . Recycling Units . | . Scanalyzers . | . Garrison Access . | . Data Cores Recovered . | . Used . | . Hacking Detections . | . Full Trace Events . | . Feedback Events . | . Feedback Blocked . | . Robot Schematics Acquired . | . Robots Built . | . Matter . | . Time . | . Total Robot Build Rating . | . Part Schematics Acquired . | . Parts Built . | . Matter . | . Time . | . Total Part Build Rating . | . Parts Repaired . | . Time . | . Parts Recycled . | . Recycled Matter . | . Retrieved Matter . | . Retrieved Components . | . Parts Scanalyzed . | . Part Schematics Acquired . | . Parts Damaged . | . Bothacking | -5 ------------ Run | Tow Used RIF Installer . | . Robots Hacked . | . Non-combat . | . Combat . | . Robot Hacks Applied . | . Relay Couplers Released . | . Robots Rewired . | . Allies Hacked . | . Hacks Repelled . | . Allies | -5 -------- Run | Tow Total Allies . | . Largest Group . | . Highest-Rated Group . | . Highest-Rated Ally . | . Total Orders . | . Ally Attacks . | . Total Damage . | . Kills . | . Allies Corrupted . | . Allies Melted . | . Intel | -5 ------- Run | Tow Robot Analysis Total . | . Derelict Logs Recovered . | . Drone Launches . | . Drone Recoveries . | . Exploration | -5 ------------- Run | Tow Turns Passed 967 | 967 Spaces Moved 585 | 585 Core . | . Treads . | . Legs 585 | 585 Wheels . | . Hover . | . Flight . | . Fastest Speed 120 | 120 Average Speed 120 | 120 Slowest Speed 150 | 150 Overloaded Moves . | . Propulsion Burnouts . | . Robots Hopped . | . Cave-ins Triggered . | . Exploration Rate (%) 18 | 18 Regions Visited 1 Branch Regions 1 Pre-discovered Areas . | . Known Exits Taken . | . Unknown Exits Taken . | . Scrap Searched . | . Spaces Dug . | . Terrain Destroyed 87 | 87 Melee . | . Projectile 1 | 1 AOE 86 | 86 Actions | -5 --------- Run | Tow Total 744 | 744 Wait 72 | 72 Move 584 | 584 Hop . | . Pick Up . | . Fast Attach 9 | 9 Attach . | . Detach . | . Swap . | . Drop 3 | 3 Fire 76 | 76 Melee . | . Ram . | . Kick . | . Crush . | . Escape Stasis . | . Rewire . | . Trap . | . Miscellaneous . | . Route ------- -5/Wartown To Epsilon Eridani History --------- Turn | Location | Event 189 | -5/Wartown | Core integrity fell below 50% 316 | -5/Wartown | Build established: Hacker-Mutant 938 | -5/Wartown | Core integrity fell below 20% 963 | -5/Wartown | Lost 4 parts (2u2w) 968 | *** | Escaped! Last Messages --------------- 00908_ HV Slug penetrates Wall. 00911_ System corrupted: Lightning Gun targeting data glitched. 00911_ Slug penetrates Hammerheart-24. 00911_ Penetrated by HV Slug. 00911_ Lightning Gun destroyed. 00917_ Slug penetrates Hammerheart-24. 00918_ Penetrated by HV Slug. 00926_ Slug penetrates Hammerheart-24. 00926_ Destroyed Shock Absorption System. 00929_ Penetrated by HV Slug. 00929_ Critical hit. 00929_ Railgun destroyed. 00932_ Penetrated by HV Slug. 00932_ Com. Battery destroyed. 00936_ Hammerheart-24 attaches Mak. Sensor Array. 00937_ Penetrated by HV Slug. 00937_ Hammerheart-24 destroyed. [[Congratulations! You are victorious! The exit is now open...]] [Achievement: Speedrunner] [Achievement: Expert Speedrunner] Map ----- +----------------------------------------------------+ | ?????????????? ?# #?????????????????????? | | ??????????????"" """ # #?????? ???????????? | | ?????????????""" """ # #????? ??????????? | | ???????????? """ """ +? ? ??????????? | | ?????????? # #? ########## | | ????????? # #? # | | ????????# # # # | | ????????# " # " | | ????????############## # " | | ????????" # #"" """"" ######### | | ???????? ????????# | | ???????? !][ ????????# | | ??????? / = ????????# | | ???? = ! # ?????????# | | ??? ############ # ?????????# | | ??? ??#######!==! ######## ??????????# | | ? ??# ]*] #?? ???????# | | ? ??# #?? ??????# | | ??# #? ??????# | | ??# #? ?????# | | " ??# # ?????# | | # ### # # # ###### | | / / | | / / | | / == ; | | / @ ; | | ; + | | ;;# ### | | # # | | # # | | # # | | # # | | # # | | # # | | ? ###########/////#######! # | | ? ??????????# ; # | | ?? ??????????# ; # | | ?? ??????????# | | ???? ??????????# # | | ?????? ??????????# # | | ????????? ???????????+ # | | ??????????????????????# # | | ??????????????????????# ???????????# | | ??????????????????????# ???????????# | | ??????????????????????# ???????????# | | ??????????????????????# ????????????# | | ??????????????????????# #####??????????????# | | ??????????????????????# #????????????# ### | | ??????????????????????? ?????????????# | | ??????????????????????? ???????????????# | +----------------------------------------------------+ Best States ------------- Heat Dissipation 83 Coolant Potential 100 Energy Generation 35 Energy Capacity 540 Matter Stores 300 Matter Capacity 300 Sight Range 16 Terrain Scan Density 10 Base Temperature (-) 100 Resistance: KI 60 Resistance: TH 35 Resistance: EX 35 Resistance: EM 35 Resistance: I 35 Resistance: S 35 Resistance: P 35 Evasion (%) 43 Melee Accuracy 6 Kinecelleration 40 Offensive Hacking 20 Item Schematics ----------------- None Robot Schematics ------------------ None Fabricated ------------ Nothing Alien Tech Used ----------------- None Achievements -------------- Expert Speedrunner Speedrunner Challenges ------------ None Game ------ Seed EnergyStormShockpuncher Manual? 0 Play Time 00:07:03 Cumulative 211.3 hours Start 2020.07.18 @ 21:25:18 End 2020.07.18 @ 21:32:40 Sessions 1 Manual Loads 0 Difficulty Explorer Special Mode Experiment/BattleRoyale Game No. 116 Rogue 0 Adventurer 44 Explorer 72 Win Type 0 Total 4 Types 3/0/1/0/0/0/0 Lore% 53 Gallery% 79 Achievement% 58 Wizard Run 0 Options --------- ASCII 0 Keyboard 0 Movement Mouse Keybinds 0 Fullscreen 1 Font 18/TerminusBold Map View 76x50 Tactical HUD 1 Map Filters NONE Filters SATURATION(100) Steam 1 RUN: 863d6e73-083e-4fd1-b662-256da252738d